fUST/lending_fUST_20250715
["ID","MTS","AMOUNT","RATE_DAILY","PERIOD"]
[372230548,1752559558121,-187.52977,0.00019519,2]
[372230549,1752559558143,-108.5637211,0.00019541,2]
[372230551,1752559602373,201.519,0.00024658,60]
[372230553,1752559630084,-165.92428254,0.00019541,2]
[372230554,1752559647087,-925.51199636,0.00019541,2]
[372230555,1752559647109,-300.0,0.00019542,2]
[372230556,1752559647130,-40.09490244,0.00019542,2]
[372230557,1752559653096,-259.90509756,0.00019542,2]
[372230558,1752559653117,-1200.0,0.00019542,2]
[372230559,1752559653139,-300.0,0.00019542,2]
[372230560,1752559653162,-500.0,0.00019543,2]
[372230561,1752559653184,-53.07833365,0.00019543,2]
[372230563,1752559756116,-300.0,0.00019514,2]
[372230564,1752559756138,-24900.0,0.00019515,2]
[372230565,1752559756160,-446.92166635,0.00019543,2]
[372230566,1752559756184,-500.0,0.00019543,2]
[372230567,1752559756215,-500.0,0.00019543,2]
[372230568,1752559756241,-500.0,0.00019543,2]
[372230569,1752559756264,-99.52496652,0.00019543,2]
[372230570,1752559774073,-259.58482176,0.00019543,2]
[372230571,1752559774096,-259.66817824,0.00019721,2]
[372230622,1752559832745,-300.0,0.0001951,2]
[372230624,1752559832755,-11875.6729872,0.00019511,2]
[372230626,1752559832765,-126.53243783,0.00019721,2]
[372230628,1752559832775,-150.0,0.000198,2]
[372230630,1752559832784,-168.0,0.00020444,2]
[372230631,1752559832793,-1431.27019011,0.00020447,2]
[372230633,1752559832802,-192.51048021,0.00020447,2]
[372230636,1752559832812,-1712.62559685,0.00020473,2]
[372230637,1752559832822,-168.0,0.00020481,2]
[372230639,1752559832831,-168.0,0.00020513,2]
[372230642,1752559832841,-168.0,0.00020518,2]
[372230643,1752559832851,-839.81873558,0.00020536,2]
[372230646,1752559832861,-368.76,0.00020537,3]
[372230648,1752559832870,-184.38,0.00020537,3]
[372230649,1752559832880,-300.0,0.00020545,2]
[372230651,1752559832890,-300.0,0.00020545,2]
[372230654,1752559832900,-500.0,0.00020546,2]
[372230655,1752559832910,-500.0,0.00020546,2]
[372230658,1752559832920,-400.3344283,0.00020546,2]
[372230660,1752559832934,-324.59854079,0.00020546,2]
[372230662,1752559832944,-500.0,0.00020546,2]
[372230664,1752559832953,-438.40489728,0.00020546,2]
[372230666,1752559832962,-500.0,0.00020546,2]
[372230668,1752559832974,-257.35734835,0.00020546,2]
[372230669,1752559832983,-166.68349793,0.00020546,2]
[372230671,1752559832993,-269.24741794,0.00020546,2]
[372230673,1752559833002,-460.0,0.00020547,3]
[372230675,1752559833013,-460.0,0.00020547,3]
[372230677,1752559833024,-460.0,0.00020547,3]
[372230679,1752559833035,-461.03816796,0.00020547,3]
[372230681,1752559833044,-523.94563493,0.00020547,3]
[372230683,1752559833054,-397.26525267,0.00020547,3]
[372230685,1752559833064,-197.22615,0.00020547,3]
[372230687,1752559833075,-460.0,0.00020547,3]
[372230689,1752559833085,-460.0,0.00020547,3]
[372230691,1752559833097,-460.0,0.00020547,3]
[372230694,1752559833107,-460.0,0.00020547,3]
[372230695,1752559833118,-460.0,0.00020547,3]
[372230715,1752559833306,-460.0,0.00020547,3]
[372230717,1752559833317,-285.75058414,0.00020547,3]
[372230719,1752559833327,-460.0,0.00020547,3]
[372230721,1752559833339,-460.0,0.00020547,3]
[372230723,1752559833350,-460.0,0.00020547,3]
[372230725,1752559833360,-460.0,0.00020547,3]
[372230727,1752559833370,-460.0,0.00020547,3]
[372230728,1752559833379,-460.0,0.00020547,3]
[372230730,1752559833389,-213.26854287,0.00020547,3]
[372230732,1752559833399,-460.0,0.00020547,3]
[372230734,1752559833409,-1000.0,0.00020547,3]
[372230736,1752559833419,-460.5486287,0.00020547,3]
[372230738,1752559833428,-460.0,0.00020547,3]
[372230740,1752559833438,-460.0,0.00020547,3]
[372230742,1752559833448,-460.0,0.00020547,3]
[372230744,1752559833458,-460.0,0.00020547,3]
[372230746,1752559833467,-460.0,0.00020547,3]
[372230748,1752559833478,-462.32567198,0.00020547,3]
[372230750,1752559833488,-460.71413138,0.00020547,3]
[372230752,1752559833498,-460.0,0.00020547,3]
[372230754,1752559833508,-463.95690257,0.00020547,3]
[372230756,1752559833518,-462.99755052,0.00020547,3]
[372230758,1752559833527,-460.0,0.00020547,3]
[372230760,1752559833537,-460.0,0.00020547,3]
[372230762,1752559833547,-460.0,0.00020547,3]
[372230764,1752559833556,-460.0,0.00020547,3]
[372230766,1752559833566,-460.0,0.00020547,3]
[372230768,1752559833576,-460.0,0.00020547,3]
[372230770,1752559833587,-460.0,0.00020547,3]
[372230773,1752559833598,-460.0,0.00020547,3]
[372230774,1752559833608,-460.0,0.00020547,3]
[372230776,1752559833618,-461.50752319,0.00020547,3]
[372230778,1752559833628,-502.00391603,0.00020547,3]
[372230780,1752559833637,-460.87862085,0.00020547,3]
[372230782,1752559833646,-460.0,0.00020547,3]
[372230784,1752559833656,-460.0,0.00020547,3]
[372230786,1752559833666,-460.0,0.00020547,3]
[372230788,1752559833678,-460.0,0.00020547,3]
[372230790,1752559833687,-460.0,0.00020547,3]
[372230792,1752559833697,-460.0,0.00020547,3]
[372230794,1752559833706,-461.46606841,0.00020547,3]
[372230796,1752559833716,-460.0,0.00020547,3]
[372230798,1752559833726,-460.0,0.00020547,3]
[372230800,1752559833735,-464.19013341,0.00020547,3]
[372230802,1752559833745,-460.62520124,0.00020547,3]
[372230804,1752559833755,-460.0,0.00020547,3]
[372230807,1752559833765,-460.0,0.00020547,3]
[372230808,1752559833775,-460.88777942,0.00020547,3]
[372230811,1752559833784,-500.0,0.00020547,3]
[372230813,1752559833794,-500.0,0.00020547,3]
[372230815,1752559833803,-500.0,0.00020547,3]
[372230817,1752559833817,-500.0,0.00020547,3]
[372230819,1752559833827,-460.0,0.00020547,3]
[372230821,1752559833836,-460.0,0.00020547,3]
[372230823,1752559833846,-460.0,0.00020547,3]
[372230825,1752559833856,-460.0,0.00020547,3]
[372230827,1752559833865,-460.0,0.00020547,3]
[372230829,1752559833875,-460.0,0.00020547,3]
[372230831,1752559833885,-460.0,0.00020547,3]
[372230833,1752559833895,-460.0,0.00020547,3]
[372230835,1752559833902,-460.0,0.00020547,3]
[372230837,1752559833911,-460.0,0.00020547,3]
[372230839,1752559833919,-461.02718599,0.00020547,3]
[372230840,1752559833928,-460.0,0.00020547,3]
[372230842,1752559833941,-460.0,0.00020547,3]
[372230844,1752559833948,-461.94261851,0.00020547,3]
[372230846,1752559833957,-460.0,0.00020547,3]
[372230848,1752559833967,-460.76180707,0.00020547,3]
[372230850,1752559833977,-460.0,0.00020547,3]
[372230852,1752559833987,-445.68351494,0.00020547,3]
[372230854,1752559833996,-462.91752975,0.00020547,3]
[372230856,1752559834008,-486.5161785,0.00020547,3]
[372230859,1752559834018,-460.0,0.00020547,3]
[372230861,1752559834030,-460.0,0.00020547,3]
[372230863,1752559834039,-467.85871266,0.00020547,3]
[372230865,1752559834048,-878.54,0.00020547,3]
[372230867,1752559834057,-468.06704966,0.00020547,3]
[372230869,1752559834066,-460.0,0.00020547,3]
[372230870,1752559834076,-460.0,0.00020547,3]
[372230872,1752559834088,-460.0,0.00020547,3]
[372230874,1752559834098,-482.47,0.00020547,3]
[372230876,1752559834108,-460.0,0.00020547,3]
[372230878,1752559834118,-460.0,0.00020547,3]
[372230880,1752559834128,-460.0,0.00020547,3]
[372230882,1752559834137,-500.0,0.00020547,3]
[372230884,1752559834147,-460.0,0.00020547,3]
[372230887,1752559834157,-460.0,0.00020547,3]
[372230889,1752559834167,-460.0,0.00020547,3]
[372230890,1752559834176,-717.38,0.00020547,3]
[372230892,1752559834186,-462.27660395,0.00020547,3]
[372230894,1752559834197,-460.0,0.00020547,3]
[372230896,1752559834206,-460.0,0.00020547,3]
[372230899,1752559834216,-460.0,0.00020547,3]
[372230900,1752559834228,-460.0,0.00020547,3]
[372230903,1752559834238,-460.0,0.00020547,3]
[372230905,1752559834248,-460.0,0.00020547,3]
[372230906,1752559834258,-460.0,0.00020547,3]
[372230908,1752559834267,-460.0,0.00020547,3]
[372230911,1752559834277,-460.0,0.00020547,3]
[372230913,1752559834287,-460.0,0.00020547,3]
[372230914,1752559834297,-460.0,0.00020547,3]
[372230916,1752559834306,-462.43621757,0.00020547,3]
[372230918,1752559834316,-460.0,0.00020547,3]
[372230920,1752559834327,-278.63485893,0.00020547,3]
[372230922,1752559834339,-460.0,0.00020547,3]
[372230924,1752559834349,-460.0,0.00020547,3]
[372230927,1752559834359,-460.0,0.00020547,3]
[372230928,1752559834369,-460.0,0.00020547,3]
[372230931,1752559834378,-465.58797972,0.00020547,3]
[372230932,1752559834388,-460.0,0.00020547,3]
[372230934,1752559834398,-463.61381438,0.00020547,3]
[372230936,1752559834407,-460.0,0.00020547,3]
[372230939,1752559834417,-488.00398843,0.00020547,3]
[372230940,1752559834427,-460.0,0.00020547,3]
[372230942,1752559834436,-584.15,0.00020547,3]
[372230944,1752559834446,-460.0,0.00020547,3]
[372230946,1752559834455,-434.85931435,0.00020547,3]
[372230948,1752559834465,-460.0,0.00020547,3]
[372230950,1752559834476,-460.0,0.00020547,3]
[372230953,1752559834486,-460.0,0.00020547,3]
[372230955,1752559834495,-460.0,0.00020547,3]
[372230956,1752559834505,-273.02493693,0.00020547,3]
[372230959,1752559834515,-460.0,0.00020547,3]
[372230960,1752559834524,-462.74713378,0.00020547,3]
[372230963,1752559834534,-460.0,0.00020547,3]
[372230964,1752559834544,-460.0,0.00020547,3]
[372230966,1752559834553,-273.21416359,0.00020547,3]
[372230969,1752559834563,-460.0,0.00020547,3]
[372230970,1752559834572,-460.0,0.00020547,3]
[372230972,1752559834581,-460.0,0.00020547,3]
[372230974,1752559834594,-460.0,0.00020547,3]
[372230976,1752559834603,-460.0,0.00020547,3]
[372230978,1752559834613,-460.0,0.00020547,3]
[372230980,1752559834622,-460.0,0.00020547,3]
[372230982,1752559834633,-460.0,0.00020547,3]
[372230985,1752559834643,-460.0,0.00020547,3]
[372230986,1752559834652,-460.0,0.00020547,3]
[372230988,1752559834662,-460.0,0.00020547,3]
[372230990,1752559834671,-460.0,0.00020547,3]
[372230993,1752559834681,-460.0,0.00020547,3]
[372230995,1752559834691,-460.0,0.00020547,3]
[372230997,1752559834701,-460.0,0.00020547,3]
[372230999,1752559834710,-460.0,0.00020547,3]
[372231001,1752559834720,-462.49661932,0.00020547,3]
[372231002,1752559834730,-462.35716031,0.00020547,3]
[372231005,1752559834739,-162.12851882,0.00020547,3]
[372231007,1752559834748,-460.0,0.00020547,3]
[372231008,1752559834759,-513.63282378,0.00020547,3]
[372231011,1752559834770,-460.0,0.00020547,3]
[372231013,1752559834780,-460.0,0.00020547,3]
[372231015,1752559834791,-460.0,0.00020547,3]
[372231017,1752559834802,-462.25514044,0.00020547,3]
[372231019,1752559834812,-465.92672398,0.00020547,3]
[372231021,1752559834822,-460.0,0.00020547,3]
[372231023,1752559834832,-460.0,0.00020547,3]
[372231025,1752559834843,-461.51613783,0.00020547,3]
[372231027,1752559834853,-460.0,0.00020547,3]
[372231029,1752559834862,-460.0,0.00020547,3]
[372231031,1752559834872,-460.0,0.00020547,3]
[372231033,1752559834882,-460.0,0.00020547,3]
[372231035,1752559834892,-460.0,0.00020547,3]
[372231037,1752559834902,-460.0,0.00020547,3]
[372231039,1752559834912,-463.37460702,0.00020547,3]
[372231041,1752559834921,-460.0,0.00020547,3]
[372231043,1752559834933,-460.0,0.00020547,3]
[372231045,1752559834944,-460.0,0.00020547,3]
[372231047,1752559834954,-500.0,0.00020547,3]
[372231049,1752559834964,-500.0,0.00020547,3]
[372231051,1752559834974,-500.0,0.00020547,3]
[372231053,1752559834984,-500.0,0.00020547,3]
[372231055,1752559834993,-500.0,0.00020547,3]
[372231057,1752559835004,-574.64,0.00020547,3]
[372231059,1752559835014,-460.0,0.00020547,3]
[372231061,1752559835023,-460.0,0.00020547,3]
[372231063,1752559835033,-460.0,0.00020547,3]
[372231065,1752559835043,-460.0,0.00020547,3]
[372231067,1752559835052,-460.0,0.00020547,3]
[372231069,1752559835062,-460.0,0.00020547,3]
[372231071,1752559835071,-460.0,0.00020547,3]
[372231073,1752559835081,-460.0,0.00020547,3]
[372231075,1752559835092,-460.0,0.00020547,3]
[372231076,1752559835102,-460.0,0.00020547,3]
[372231077,1752559835112,-460.0,0.00020547,3]
[372231078,1752559835121,-460.0,0.00020547,3]
[372231079,1752559835131,-473.44425675,0.00020547,3]
[372231080,1752559835140,-461.46444651,0.00020547,3]
[372231081,1752559835150,-460.0,0.00020547,3]
[372231082,1752559835159,-460.0,0.00020547,3]
[372231083,1752559835169,-475.99,0.00020547,3]
[372231084,1752559835179,-460.0,0.00020547,3]
[372231085,1752559835189,-460.0,0.00020547,3]
[372231086,1752559835198,-460.0,0.00020547,3]
[372231087,1752559835208,-460.0,0.00020547,3]
[372231088,1752559835218,-460.0,0.00020547,3]
[372231089,1752559835228,-460.0,0.00020547,3]
[372231090,1752559835237,-460.0,0.00020547,3]
[372231091,1752559835247,-675.07,0.00020547,3]
[372231092,1752559835257,-460.0,0.00020547,3]
[372231093,1752559835267,-460.0,0.00020547,3]
[372231094,1752559835277,-460.0,0.00020547,3]
[372231095,1752559835287,-460.0,0.00020547,3]
[372231096,1752559835297,-460.0,0.00020547,3]
[372231097,1752559835307,-460.0,0.00020547,3]
[372231098,1752559835316,-460.0,0.00020547,3]
[372231099,1752559835326,-461.70436865,0.00020547,3]
[372231101,1752559835336,-460.0,0.00020547,3]
[372231102,1752559835348,-460.0,0.00020547,3]
[372231104,1752559835358,-460.0,0.00020547,3]
[372231106,1752559835368,-460.0,0.00020547,3]
[372231108,1752559835377,-460.0,0.00020547,3]
[372231111,1752559835387,-460.0,0.00020547,3]
[372231113,1752559835397,-460.0,0.00020547,3]
[372231114,1752559835406,-460.0,0.00020547,3]
[372231117,1752559835416,-460.0,0.00020547,3]
[372231119,1752559835427,-460.0,0.00020547,3]
[372231121,1752559835436,-460.0,0.00020547,3]
[372231123,1752559835447,-460.0,0.00020547,3]
[372231125,1752559835456,-460.0,0.00020547,3]
[372231127,1752559835465,-464.58377306,0.00020547,3]
[372231129,1752559835475,-460.0,0.00020547,3]
[372231131,1752559835484,-460.0,0.00020547,3]
[372231133,1752559835494,-460.0,0.00020547,3]
[372231134,1752559835504,-460.0,0.00020547,3]
[372231136,1752559835513,-460.0,0.00020547,3]
[372231138,1752559835523,-460.0,0.00020547,3]
[372231141,1752559835532,-314.65072694,0.00020547,3]
[372231142,1752559835542,-460.0,0.00020547,3]
[372231145,1752559835552,-460.0,0.00020547,3]
[372231147,1752559835561,-460.0,0.00020547,3]
[372231148,1752559835571,-460.0,0.00020547,3]
[372231151,1752559835581,-460.0,0.00020547,3]
[372231152,1752559835592,-460.0,0.00020547,3]
[372231155,1752559835602,-293.8,0.00020547,3]
[372231157,1752559835611,-460.0,0.00020547,3]
[372231159,1752559835621,-462.27543143,0.00020547,3]
[372231161,1752559835630,-460.0,0.00020547,3]
[372231163,1752559835640,-460.0,0.00020547,3]
[372231165,1752559835650,-462.96630464,0.00020547,3]
[372231167,1752559835660,-460.0,0.00020547,3]
[372231169,1752559835669,-460.0,0.00020547,3]
[372231171,1752559835678,-460.0,0.00020547,3]
[372231172,1752559835687,-460.0,0.00020547,3]
[372231174,1752559835696,-460.0,0.00020547,3]
[372231186,1752559835791,-460.0,0.00020547,3]
[372231188,1752559835812,-460.0,0.00020547,3]
[372231190,1752559835822,-460.0,0.00020547,3]
[372231192,1752559835832,-460.0,0.00020547,3]
[372231194,1752559835844,-460.0,0.00020547,3]
[372231196,1752559835854,-460.0,0.00020547,3]
[372231198,1752559835864,-460.0,0.00020547,3]
[372231200,1752559835873,-460.0,0.00020547,3]
[372231202,1752559835883,-460.0,0.00020547,3]
[372231204,1752559835892,-460.0,0.00020547,3]
[372231206,1752559835901,-462.14775319,0.00020547,3]
[372231208,1752559835911,-461.80732137,0.00020547,3]
[372231210,1752559835920,-369.78223121,0.00020547,3]
[372231212,1752559835932,-460.0,0.00020547,3]
[372231214,1752559835942,-460.0,0.00020547,3]
[372231216,1752559835951,-460.0,0.00020547,3]
[372231218,1752559835961,-500.0,0.00020547,3]
[372231220,1752559835970,-460.0,0.00020547,3]
[372231222,1752559835980,-460.0,0.00020547,3]
[372231225,1752559835990,-243.20813341,0.00020547,3]
[372231227,1752559836000,-460.0,0.00020547,3]
[372231228,1752559836010,-460.0,0.00020547,3]
[372231230,1752559836020,-460.0,0.00020547,3]
[372231233,1752559836030,-460.0,0.00020547,3]
[372231235,1752559836039,-460.0,0.00020547,3]
[372231237,1752559836049,-460.0,0.00020547,3]
[372231238,1752559836058,-460.0,0.00020547,3]
[372231240,1752559836068,-460.0,0.00020547,3]
[372231243,1752559836078,-460.0,0.00020547,3]
[372231244,1752559836088,-460.0,0.00020547,3]
[372231246,1752559836097,-314.89942466,0.00020547,3]
[372231248,1752559836107,-460.0,0.00020547,3]
[372231251,1752559836116,-476.76671964,0.00020547,3]
[372231252,1752559836126,-460.0,0.00020547,3]
[372231254,1752559836135,-533.10150346,0.00020547,3]
[372231257,1752559836145,-4027.46,0.00020547,3]
[372231258,1752559836155,-460.0,0.00020547,3]
[372231261,1752559836164,-460.0,0.00020547,3]
[372231263,1752559836174,-460.0,0.00020547,3]
[372231265,1752559836184,-463.46964991,0.00020547,3]
[372231267,1752559836194,-460.0,0.00020547,3]
[372231269,1752559836203,-460.0,0.00020547,3]
[372231271,1752559836213,-1307.21,0.00020547,3]
[372231272,1752559836223,-460.0,0.00020547,3]
[372231275,1752559836232,-460.0,0.00020547,3]
[372231276,1752559836242,-589.64,0.00020547,3]
[372231278,1752559836251,-460.0,0.00020547,3]
[372231280,1752559836260,-460.0,0.00020547,3]
[372231282,1752559836270,-461.45933676,0.00020547,3]
[372231284,1752559836280,-460.0,0.00020547,3]
[372231286,1752559836289,-237.07492919,0.00020547,3]
[372231288,1752559836298,-460.0,0.00020547,3]
[372231290,1752559836308,-460.0,0.00020547,3]
[372231292,1752559836318,-461.17739534,0.00020547,3]
[372231295,1752559836327,-461.9747577,0.00020547,3]
[372231296,1752559836338,-1153.09,0.00020547,3]
[372231298,1752559836347,-460.0,0.00020547,3]
[372231300,1752559836357,-460.0,0.00020547,3]
[372231302,1752559836366,-460.0,0.00020547,3]
[372231305,1752559836376,-460.0,0.00020547,3]
[372231307,1752559836386,-460.0,0.00020547,3]
[372231309,1752559836396,-460.0,0.00020547,3]
[372231311,1752559836405,-460.0,0.00020547,3]
[372231312,1752559836415,-310.0,0.00020547,3]
[372231314,1752559836424,-460.0,0.00020547,3]
[372231316,1752559836434,-4329.31,0.00020547,3]
[372231318,1752559836443,-460.0,0.00020547,3]
[372231320,1752559836452,-460.0,0.00020547,3]
[372231322,1752559836462,-460.0,0.00020547,3]
[372231324,1752559836471,-460.0,0.00020547,3]
[372231326,1752559836481,-460.0,0.00020547,3]
[372231328,1752559836490,-460.0,0.00020547,3]
[372231331,1752559836500,-460.0,0.00020547,3]
[372231332,1752559836509,-460.0,0.00020547,3]
[372231335,1752559836519,-460.0,0.00020547,3]
[372231337,1752559836528,-720.57,0.00020547,3]
[372231339,1752559836538,-460.0,0.00020547,3]
[372231341,1752559836548,-460.0,0.00020547,3]
[372231342,1752559836557,-500.0,0.00020547,3]
[372231344,1752559836567,-110.46500614,0.00020547,3]
[372231353,1752559836639,-389.53499386,0.00020547,3]
[372231355,1752559836649,-500.0,0.00020547,3]
[372231357,1752559836658,-500.0,0.00020547,3]
[372231359,1752559836668,-500.0,0.00020547,3]
[372231361,1752559836678,-500.0,0.00020547,3]
[372231364,1752559836688,-478.2,0.00020547,3]
[372231366,1752559836698,-500.0,0.00020547,3]
[372231368,1752559836707,-500.0,0.00020547,3]
[372231369,1752559836717,-500.0,0.00020547,3]
[372231371,1752559836726,-460.0,0.00020547,3]
[372231373,1752559836736,-460.0,0.00020547,3]
[372231375,1752559836745,-465.89611425,0.00020547,3]
[372231377,1752559836755,-1960.05,0.00020547,3]
[372231379,1752559836764,-1002.29,0.00020547,3]
[372231381,1752559836774,-5.58918948,0.00020547,3]
[372231384,1752559836786,-454.41081052,0.00020547,3]
[372231386,1752559836795,-460.0,0.00020547,3]
[372231388,1752559836804,-692.79,0.00020547,3]
[372231390,1752559836813,-460.0,0.00020547,3]
[372231392,1752559836823,-588.77084885,0.00020547,3]
[372231394,1752559836832,-460.0,0.00020547,3]
[372231396,1752559836843,-460.0,0.00020547,3]
[372231398,1752559836853,-460.0,0.00020547,3]
[372231400,1752559836863,-460.0,0.00020547,3]
[372231402,1752559836872,-460.0,0.00020547,3]
[372231403,1752559836881,-2925.11,0.00020547,3]
[372231404,1752559836891,-460.0,0.00020547,3]
[372231405,1752559836899,-460.0,0.00020547,3]
[372231406,1752559836908,-464.33766646,0.00020547,3]
[372231407,1752559836917,-460.0,0.00020547,3]
[372231408,1752559836927,-460.0,0.00020547,3]
[372231409,1752559836939,-460.0,0.00020547,3]
[372231410,1752559836949,-935.81,0.00020547,3]
[372231411,1752559836959,-460.0,0.00020547,3]
[372231412,1752559836969,-560.84,0.00020547,3]
[372231413,1752559836979,-460.0,0.00020547,3]
[372231414,1752559836988,-460.0,0.00020547,3]
[372231415,1752559836998,-466.86937732,0.00020547,3]
[372231416,1752559837008,-460.0,0.00020547,3]
[372231417,1752559837018,-460.0,0.00020547,3]
[372231418,1752559837028,-1540.0,0.00020547,3]
[372231419,1752559837037,-463.16853558,0.00020547,3]
[372231420,1752559837047,-662.5,0.00020547,3]
[372231421,1752559837057,-461.4521134,0.00020547,3]
[372231422,1752559837066,-460.0,0.00020547,3]
[372231423,1752559837076,-474.09749167,0.00020547,3]
[372231424,1752559837086,-460.0,0.00020547,3]
[372231425,1752559837096,-460.86245414,0.00020547,3]
[372231426,1752559837106,-460.0,0.00020547,3]
[372231427,1752559837116,-460.0,0.00020547,3]
[372231428,1752559837126,-460.0,0.00020547,3]
[372231429,1752559837137,-460.0,0.00020547,3]
[372231430,1752559837147,-460.0,0.00020547,3]
[372231431,1752559837156,-460.0,0.00020547,3]
[372231432,1752559837166,-460.0,0.00020547,3]
[372231433,1752559837175,-460.0,0.00020547,3]
[372231434,1752559837185,-460.0,0.00020547,3]
[372231435,1752559837195,-460.0,0.00020547,3]
[372231436,1752559837205,-460.0,0.00020547,3]
[372231437,1752559837215,-460.72845538,0.00020547,3]
[372231438,1752559837224,-460.0,0.00020547,3]
[372231439,1752559837234,-460.0,0.00020547,3]
[372231440,1752559837243,-460.0,0.00020547,3]
[372231441,1752559837253,-460.0,0.00020547,3]
[372231442,1752559837263,-460.0,0.00020547,3]
[372231443,1752559837272,-873.58,0.00020547,3]
[372231444,1752559837282,-460.0,0.00020547,3]
[372231445,1752559837291,-463.54067668,0.00020547,3]
[372231446,1752559837301,-460.0,0.00020547,3]
[372231447,1752559837311,-460.0,0.00020547,3]
[372231448,1752559837322,-260.17,0.00020547,3]
[372231450,1752559837331,-460.0,0.00020547,3]
[372231452,1752559837341,-460.0,0.00020547,3]
[372231454,1752559837351,-1426.05,0.00020547,3]
[372231456,1752559837360,-460.0,0.00020547,3]
[372231458,1752559837370,-460.0,0.00020547,3]
[372231460,1752559837379,-460.0,0.00020547,3]
[372231462,1752559837389,-460.0,0.00020547,3]
[372231463,1752559837398,-460.0,0.00020547,3]
[372231465,1752559837407,-464.27696739,0.00020547,3]
[372231467,1752559837416,-590.96505809,0.00020547,3]
[372231469,1752559837426,-460.0,0.00020547,3]
[372231471,1752559837435,-271.65887501,0.00020547,3]
[372231472,1752559837444,-460.0,0.00020547,3]
[372231473,1752559837455,-460.0,0.00020547,3]
[372231474,1752559837466,-460.0,0.00020547,3]
[372231476,1752559837477,-460.0,0.00020547,3]
[372231478,1752559837487,-460.0,0.00020547,3]
[372231480,1752559837497,-3924.98,0.00020547,3]
[372231482,1752559837507,-460.0,0.00020547,3]
[372231484,1752559837516,-460.0,0.00020547,3]
[372231486,1752559837526,-460.0,0.00020547,3]
[372231488,1752559837535,-460.0,0.00020547,3]
[372231490,1752559837545,-460.0,0.00020547,3]
[372231492,1752559837554,-460.0,0.00020547,3]
[372231494,1752559837565,-460.0,0.00020547,3]
[372231496,1752559837575,-460.0,0.00020547,3]
[372231498,1752559837584,-460.0,0.00020547,3]
[372231500,1752559837594,-460.0,0.00020547,3]
[372231502,1752559837603,-460.0,0.00020547,3]
[372231504,1752559837613,-523.71,0.00020547,3]
[372231505,1752559837622,-821.3,0.00020547,3]
[372231507,1752559837632,-460.0,0.00020547,3]
[372231509,1752559837641,-463.37715352,0.00020547,3]
[372231511,1752559837650,-460.0,0.00020547,3]
[372231512,1752559837659,-460.0,0.00020547,3]
[372231513,1752559837668,-460.0,0.00020547,3]
[372231514,1752559837678,-505.50893237,0.00020547,3]
[372231515,1752559837687,-460.0,0.00020547,3]
[372231516,1752559837697,-460.0,0.00020547,3]
[372231517,1752559837706,-460.0,0.00020547,3]
[372231518,1752559837716,-460.0,0.00020547,3]
[372231519,1752559837725,-460.82486432,0.00020547,3]
[372231520,1752559837735,-462.97622952,0.00020547,3]
[372231521,1752559837744,-461.61365901,0.00020547,3]
[372231522,1752559837753,-2629.61,0.00020547,3]
[372231523,1752559837762,-462.32680738,0.00020547,3]
[372231524,1752559837772,-656.47,0.00020547,3]